[Event "January 2 Late 2024"]
[Site "https://www.chess.com"]
[Date "2024.01.02"]
[Round "8"]
[White "Leenhouts, Koen"]
[Black "TheCavemanChess"]
[Result "1-0"]
[Board "53"]
[TimeControl "180+1"]
[WhiteFideId "1008439"]
[WhiteElo "2540"]
[BlackElo "2679"]
[WhiteTeam "NED"]
[WhiteClock "0:00:07"]
[BlackClock "0:00:10"]

1. d4 {[%clk 0:03:00]}  Nf6 {[%clk 0:02:59]} 2. Nf3 {[%clk 0:03:00]}  e6 {[%clk 0:02:58]} 3. g3 {[%clk 0:03:00]}  Be7 {[%clk 0:02:58]} 4. c4 {[%clk 0:03:00]}  O-O {[%clk 0:02:59]} 5. Bg2 {[%clk 0:03:00]}  d5 {[%clk 0:03:00]} 6. O-O {[%clk 0:03:00]}  dxc4 {[%clk 0:03:01]} 7. Qc2 {[%clk 0:02:56]}  a6 {[%clk 0:03:01]} 8. a4 {[%clk 0:02:55]}  Bd7 {[%clk 0:03:02]} 9. Qxc4 {[%clk 0:02:55]}  Bc6 {[%clk 0:03:01]} 10. Bf4 {[%clk 0:02:52]}  a5 {[%clk 0:03:01]} 11. Nc3 {[%clk 0:02:51]}  Na6 {[%clk 0:03:01]} 12. Rfe1 {[%clk 0:02:44]}  Bxf3 {[%clk 0:02:54]} 13. Bxf3 {[%clk 0:02:44]}  c6 {[%clk 0:02:54]} 14. Qb3 {[%clk 0:02:33]}  Nb4 {[%clk 0:02:51]} 15. Rad1 {[%clk 0:02:28]}  h6 {[%clk 0:02:51]} 16. h4 {[%clk 0:02:27]}  Re8 {[%clk 0:02:50]} 17. Kg2 {[%clk 0:02:25]}  Bd6 {[%clk 0:02:48]} 18. Bxd6 {[%clk 0:02:18]}  Qxd6 {[%clk 0:02:48]} 19. e3 {[%clk 0:02:18]}  Rad8 {[%clk 0:02:44]} 20. Ne4 {[%clk 0:02:13]}  Nxe4 {[%clk 0:02:44]} 21. Bxe4 {[%clk 0:02:14]}  Kh8 {[%clk 0:02:35]} 22. h5 {[%clk 0:02:10]}  Kg8 {[%clk 0:02:35]} 23. Rc1 {[%clk 0:01:57]}  e5 {[%clk 0:02:33]} 24. Red1 {[%clk 0:01:45]}  Kf8 {[%clk 0:02:26]} 25. dxe5 {[%clk 0:01:39]}  Qxe5 {[%clk 0:02:23]} 26. Bf3 {[%clk 0:01:39]}  Ke7 {[%clk 0:02:07]} 27. Qc4 {[%clk 0:01:34]}  Rd6 {[%clk 0:01:25]} 28. Rd4 {[%clk 0:01:26]}  Rxd4 {[%clk 0:01:23]} 29. exd4 {[%clk 0:01:25]}  Qd6 {[%clk 0:01:21]} 30. Re1+ {[%clk 0:00:54]}  Kf8 {[%clk 0:01:20]} 31. Rxe8+ {[%clk 0:00:48]}  Kxe8 {[%clk 0:01:21]} 32. Qe2+ {[%clk 0:00:47]}  Kf8 {[%clk 0:01:15]} 33. Qe4 {[%clk 0:00:46]}  Qe7 {[%clk 0:00:57]} 34. Qh7 {[%clk 0:00:44]}  Qf6 {[%clk 0:00:56]} 35. Qh8+ {[%clk 0:00:43]}  Ke7 {[%clk 0:00:56]} 36. Qa8 {[%clk 0:00:41]}  Qxd4 {[%clk 0:00:53]} 37. Qxb7+ {[%clk 0:00:40]}  Kf6 {[%clk 0:00:51]} 38. Bxc6 {[%clk 0:00:33]}  Qxb2 {[%clk 0:00:51]} 39. Bd5 {[%clk 0:00:28]}  Nd3 {[%clk 0:00:34]} 40. Qxf7+ {[%clk 0:00:24]}  Ke5 {[%clk 0:00:35]} 41. Qe6+ {[%clk 0:00:16]}  Kd4 {[%clk 0:00:35]} 42. Qe4+ {[%clk 0:00:16]}  Kc3 {[%clk 0:00:36]} 43. Qf5 {[%clk 0:00:12]}  Qd2 {[%clk 0:00:27]} 44. Be4 {[%clk 0:00:11]}  Ne1+ {[%clk 0:00:25]} 45. Kf1 {[%clk 0:00:11]}  Kb4 {[%clk 0:00:20]} 46. Qb5+ {[%clk 0:00:10]}  Ka3 {[%clk 0:00:20]} 47. Qc5+ {[%clk 0:00:09]}  Kxa4 {[%clk 0:00:18]} 48. Bc6+ {[%clk 0:00:09]}  Kb3 {[%clk 0:00:19]} 49. Qb5+ {[%clk 0:00:07]}  Ka3 {[%clk 0:00:17]} 50. Qc5+ {[%clk 0:00:07]}  Kb2 {[%clk 0:00:17]} 51. Qe5+ {[%clk 0:00:07]}  Ka3 {[%clk 0:00:15]} 52. Qxe1 {[%clk 0:00:08]}  Qc2 {[%clk 0:00:13]} 53. Qe3+ {[%clk 0:00:07]}  Kb2 {[%clk 0:00:10]} 54. Qe2 {[%clk 0:00:07]} 1-0

[Event "January 2 Late 2024"]
[Site "https://www.chess.com"]
[Date "2024.01.02"]
[Round "8"]
[White "Gurevich, Dmitry"]
[Black "Hamitevici, Vladimir"]
[Result "1-0"]
[Board "56"]
[TimeControl "180+1"]
[WhiteFideId "2000407"]
[BlackFideId "13902393"]
[WhiteElo "2444"]
[BlackElo "2659"]
[WhiteTeam "USA"]
[BlackTeam "MDA"]
[WhiteClock "0:00:30"]
[BlackClock "0:00:00"]

1. d4 {[%clk 0:03:00]}  e6 {[%clk 0:02:58]} 2. c4 {[%clk 0:03:00]}  b6 {[%clk 0:02:58]} 3. a3 {[%clk 0:02:58]}  Nf6 {[%clk 0:02:52]} 4. Nc3 {[%clk 0:02:58]}  Bb7 {[%clk 0:02:52]} 5. d5 {[%clk 0:02:58]}  Bd6 {[%clk 0:02:51]} 6. g3 {[%clk 0:02:57]}  Be5 {[%clk 0:02:50]} 7. Bd2 {[%clk 0:02:54]}  exd5 {[%clk 0:02:39]} 8. Bg2 {[%clk 0:02:53]}  O-O {[%clk 0:02:16]} 9. cxd5 {[%clk 0:02:49]}  Re8 {[%clk 0:02:16]} 10. Nh3 {[%clk 0:02:47]}  Ba6 {[%clk 0:02:00]} 11. Nf4 {[%clk 0:02:38]}  c5 {[%clk 0:01:52]} 12. O-O {[%clk 0:02:21]}  d6 {[%clk 0:01:48]} 13. Nd3 {[%clk 0:02:16]}  Nbd7 {[%clk 0:01:40]} 14. Nxe5 {[%clk 0:02:12]}  Nxe5 {[%clk 0:01:40]} 15. b3 {[%clk 0:02:10]}  b5 {[%clk 0:01:34]} 16. Qb1 {[%clk 0:01:41]}  Qc8 {[%clk 0:01:25]} 17. Re1 {[%clk 0:01:32]}  Rb8 {[%clk 0:01:01]} 18. Bg5 {[%clk 0:01:19]}  Nfd7 {[%clk 0:00:45]} 19. h3 {[%clk 0:01:11]}  b4 {[%clk 0:00:37]} 20. axb4 {[%clk 0:01:10]}  Rxb4 {[%clk 0:00:37]} 21. Qa2 {[%clk 0:01:05]}  Nb8 {[%clk 0:00:29]} 22. Bd2 {[%clk 0:00:57]}  Qb7 {[%clk 0:00:28]} 23. Ne4 {[%clk 0:00:53]}  Rxe4 {[%clk 0:00:10]} 24. Bxe4 {[%clk 0:00:52]}  c4 {[%clk 0:00:10]} 25. Reb1 {[%clk 0:00:41]}  Qd7 {[%clk 0:00:08]} 26. bxc4 {[%clk 0:00:34]}  Qxh3 {[%clk 0:00:00]} 27. Bg2 {[%clk 0:00:30]} 1-0

[Event "January 2 Late 2024"]
[Site "https://www.chess.com"]
[Date "2024.01.02"]
[Round "8"]
[White "Martin Fuentes, Alberto"]
[Black "Seletsky, Grigory"]
[Result "1-0"]
[Board "57"]
[TimeControl "180+1"]
[WhiteFideId "2292289"]
[BlackFideId "14112191"]
[WhiteElo "2655"]
[BlackElo "2440"]
[WhiteTeam "ESP"]
[BlackTeam "UKR"]
[WhiteClock "0:00:53"]
[BlackClock "0:00:05"]

1. e4 {[%clk 0:03:00]}  e6 {[%clk 0:03:00]} 2. Nf3 {[%clk 0:02:59]}  d5 {[%clk 0:03:00]} 3. e5 {[%clk 0:03:00]}  c5 {[%clk 0:03:00]} 4. b4 {[%clk 0:03:00]}  b6 {[%clk 0:03:00]} 5. bxc5 {[%clk 0:02:59]}  bxc5 {[%clk 0:02:59]} 6. c3 {[%clk 0:03:00]}  Qd7 {[%clk 0:02:57]} 7. Be2 {[%clk 0:02:57]}  Ba6 {[%clk 0:02:57]} 8. d3 {[%clk 0:02:58]}  Ne7 {[%clk 0:02:54]} 9. O-O {[%clk 0:02:57]}  Ng6 {[%clk 0:02:51]} 10. h4 {[%clk 0:02:56]}  Nc6 {[%clk 0:02:45]} 11. Qa4 {[%clk 0:02:52]}  Bb7 {[%clk 0:02:41]} 12. d4 {[%clk 0:02:50]}  c4 {[%clk 0:02:17]} 13. Qc2 {[%clk 0:02:44]}  Be7 {[%clk 0:02:14]} 14. h5 {[%clk 0:02:43]}  Nf8 {[%clk 0:02:10]} 15. h6 {[%clk 0:02:40]}  g6 {[%clk 0:02:09]} 16. Ba3 {[%clk 0:02:35]}  Qc7 {[%clk 0:02:04]} 17. Bxe7 {[%clk 0:02:31]}  Qxe7 {[%clk 0:02:00]} 18. a4 {[%clk 0:02:25]}  Nd7 {[%clk 0:01:58]} 19. Na3 {[%clk 0:02:22]}  O-O {[%clk 0:01:43]} 20. Nb5 {[%clk 0:02:21]}  a6 {[%clk 0:01:36]} 21. Nd6 {[%clk 0:02:21]}  Rfb8 {[%clk 0:01:34]} 22. Rab1 {[%clk 0:02:20]}  Bc8 {[%clk 0:01:34]} 23. Qd2 {[%clk 0:02:14]}  Nd8 {[%clk 0:01:21]} 24. Qf4 {[%clk 0:02:11]}  f6 {[%clk 0:00:58]} 25. Rfe1 {[%clk 0:02:03]}  fxe5 {[%clk 0:00:55]} 26. dxe5 {[%clk 0:02:04]}  Nf7 {[%clk 0:00:53]} 27. Nxf7 {[%clk 0:01:52]}  Qxf7 {[%clk 0:00:52]} 28. Qxf7+ {[%clk 0:01:30]}  Kxf7 {[%clk 0:00:52]} 29. Ng5+ {[%clk 0:01:31]}  Ke7 {[%clk 0:00:52]} 30. f4 {[%clk 0:01:31]}  Nf8 {[%clk 0:00:50]} 31. Kf2 {[%clk 0:01:23]}  a5 {[%clk 0:00:49]} 32. Rec1 {[%clk 0:01:19]}  Bd7 {[%clk 0:00:50]} 33. Bd1 {[%clk 0:01:18]}  Kd8 {[%clk 0:00:40]} 34. Ke3 {[%clk 0:01:17]}  Kc7 {[%clk 0:00:41]} 35. Kd4 {[%clk 0:01:18]}  Rxb1 {[%clk 0:00:41]} 36. Rxb1 {[%clk 0:01:17]}  Rb8 {[%clk 0:00:39]} 37. Rxb8 {[%clk 0:01:16]}  Kxb8 {[%clk 0:00:39]} 38. Kc5 {[%clk 0:01:16]}  Kc7 {[%clk 0:00:40]} 39. Bc2 {[%clk 0:01:17]}  Be8 {[%clk 0:00:35]} 40. g4 {[%clk 0:01:14]}  Nd7+ {[%clk 0:00:31]} 41. Kd4 {[%clk 0:01:09]}  Nf8 {[%clk 0:00:30]} 42. f5 {[%clk 0:01:09]}  gxf5 {[%clk 0:00:25]} 43. gxf5 {[%clk 0:01:09]}  exf5 {[%clk 0:00:21]} 44. Kxd5 {[%clk 0:01:08]}  f4 {[%clk 0:00:20]} 45. Nxh7 {[%clk 0:01:04]}  Nxh7 {[%clk 0:00:19]} 46. Bxh7 {[%clk 0:01:05]}  f3 {[%clk 0:00:18]} 47. Kxc4 {[%clk 0:01:03]}  Bxa4 {[%clk 0:00:13]} 48. Bd3 {[%clk 0:00:59]}  Kb6 {[%clk 0:00:13]} 49. h7 {[%clk 0:00:54]}  Bb5+ {[%clk 0:00:14]} 50. Kd4 {[%clk 0:00:55]}  Bxd3 {[%clk 0:00:13]} 51. Kxd3 {[%clk 0:00:56]}  f2 {[%clk 0:00:11]} 52. Ke2 {[%clk 0:00:56]}  a4 {[%clk 0:00:11]} 53. h8=Q {[%clk 0:00:55]}  a3 {[%clk 0:00:12]} 54. Qa8 {[%clk 0:00:55]}  a2 {[%clk 0:00:12]} 55. Qxa2 {[%clk 0:00:55]}  Kc5 {[%clk 0:00:13]} 56. Kxf2 {[%clk 0:00:54]}  Kb5 {[%clk 0:00:12]} 57. Ke3 {[%clk 0:00:54]}  Kc5 {[%clk 0:00:12]} 58. Qe6 {[%clk 0:00:52]}  Kb5 {[%clk 0:00:11]} 59. Qd6 {[%clk 0:00:53]}  Kc4 {[%clk 0:00:10]} 60. e6 {[%clk 0:00:54]}  Kb3 {[%clk 0:00:10]} 61. c4 {[%clk 0:00:54]}  Kc3 {[%clk 0:00:10]} 62. c5 {[%clk 0:00:55]}  Kc4 {[%clk 0:00:10]} 63. c6 {[%clk 0:00:55]}  Kb5 {[%clk 0:00:10]} 64. c7 {[%clk 0:00:55]}  Ka4 {[%clk 0:00:10]} 65. c8=Q {[%clk 0:00:53]}  Kb5 {[%clk 0:00:10]} 66. Qdb8+ {[%clk 0:00:53]}  Ka5 {[%clk 0:00:05]} 67. Qc5+ {[%clk 0:00:53]} 1-0

[Event "January 2 Late 2024"]
[Site "https://www.chess.com"]
[Date "2024.01.02"]
[Round "8"]
[White "Lashkin, Jegor"]
[Black "Przybylski, Wojciech"]
[Result "1-0"]
[Board "59"]
[TimeControl "180+1"]
[WhiteFideId "13907808"]
[BlackFideId "1117599"]
[WhiteElo "2799"]
[BlackElo "2551"]
[WhiteTeam "MDA"]
[BlackTeam "POL"]
[WhiteClock "0:01:27"]
[BlackClock "0:00:00"]

1. d4 {[%clk 0:02:48]}  Nf6 {[%clk 0:02:59]} 2. c4 {[%clk 0:02:48]}  e6 {[%clk 0:02:59]} 3. Nf3 {[%clk 0:02:48]}  b6 {[%clk 0:02:58]} 4. e3 {[%clk 0:02:42]}  Bb7 {[%clk 0:02:57]} 5. Nc3 {[%clk 0:02:41]}  Bb4 {[%clk 0:02:56]} 6. Bd2 {[%clk 0:02:41]}  O-O {[%clk 0:02:56]} 7. Bd3 {[%clk 0:02:41]}  d5 {[%clk 0:02:53]} 8. cxd5 {[%clk 0:02:40]}  exd5 {[%clk 0:02:53]} 9. O-O {[%clk 0:02:41]}  a6 {[%clk 0:02:51]} 10. Ne5 {[%clk 0:02:41]}  Nbd7 {[%clk 0:02:49]} 11. f4 {[%clk 0:02:40]}  Bd6 {[%clk 0:02:47]} 12. Qf3 {[%clk 0:02:39]}  c5 {[%clk 0:02:46]} 13. Qh3 {[%clk 0:02:38]}  h6 {[%clk 0:02:30]} 14. Bf5 {[%clk 0:02:34]}  Nb8 {[%clk 0:02:13]} 15. Be1 {[%clk 0:02:27]}  Ne4 {[%clk 0:02:01]} 16. Bh4 {[%clk 0:01:57]}  Qc7 {[%clk 0:02:00]} 17. Nxe4 {[%clk 0:01:49]}  dxe4 {[%clk 0:01:59]} 18. Bf6 {[%clk 0:01:50]}  Re8 {[%clk 0:01:36]} 19. Ng4 {[%clk 0:01:41]}  Bc8 {[%clk 0:00:26]} 20. Nxh6+ {[%clk 0:01:36]}  Kf8 {[%clk 0:00:23]} 21. Bxc8 {[%clk 0:01:28]}  Qxc8 {[%clk 0:00:00]} 22. Nf5 {[%clk 0:01:27]} 1-0

[Event "January 2 Late 2024"]
[Site "https://www.chess.com"]
[Date "2024.01.02"]
[Round "8"]
[White "Silva, Kaua Marques"]
[Black "Seemann, Jakub"]
[Result "0-1"]
[Board "60"]
[TimeControl "180+1"]
[WhiteFideId "22701168"]
[BlackFideId "21874697"]
[WhiteElo "2543"]
[BlackElo "2793"]
[WhiteTeam "BRA"]
[BlackTeam "POL"]
[WhiteClock "0:00:00"]
[BlackClock "0:00:04"]

1. e4 {[%clk 0:03:00]}  c5 {[%clk 0:02:59]} 2. Nf3 {[%clk 0:03:01]}  e6 {[%clk 0:02:59]} 3. c3 {[%clk 0:03:00]}  d5 {[%clk 0:02:59]} 4. e5 {[%clk 0:03:00]}  d4 {[%clk 0:02:59]} 5. Bd3 {[%clk 0:03:00]}  Bd7 {[%clk 0:02:58]} 6. O-O {[%clk 0:03:00]}  Bc6 {[%clk 0:02:59]} 7. Re1 {[%clk 0:03:01]}  Ne7 {[%clk 0:02:54]} 8. h4 {[%clk 0:03:00]}  Nf5 {[%clk 0:02:49]} 9. Bxf5 {[%clk 0:02:58]}  exf5 {[%clk 0:02:49]} 10. d3 {[%clk 0:02:55]}  Be7 {[%clk 0:02:48]} 11. Bg5 {[%clk 0:02:41]}  Bxg5 {[%clk 0:02:48]} 12. hxg5 {[%clk 0:02:38]}  O-O {[%clk 0:02:48]} 13. Nbd2 {[%clk 0:02:37]}  Nd7 {[%clk 0:02:46]} 14. cxd4 {[%clk 0:02:32]}  cxd4 {[%clk 0:02:39]} 15. Nxd4 {[%clk 0:02:31]}  Qxg5 {[%clk 0:02:36]} 16. Nxc6 {[%clk 0:02:30]}  bxc6 {[%clk 0:02:37]} 17. Rc1 {[%clk 0:02:25]}  c5 {[%clk 0:02:35]} 18. Nf3 {[%clk 0:02:21]}  Qe7 {[%clk 0:02:31]} 19. d4 {[%clk 0:02:12]}  cxd4 {[%clk 0:02:29]} 20. Qxd4 {[%clk 0:02:13]}  Rfd8 {[%clk 0:02:22]} 21. Qf4 {[%clk 0:02:12]}  g6 {[%clk 0:02:14]} 22. Rc7 {[%clk 0:01:58]}  Rdc8 {[%clk 0:02:09]} 23. Rec1 {[%clk 0:01:55]}  Qd8 {[%clk 0:02:04]} 24. Qc4 {[%clk 0:01:36]}  Rxc7 {[%clk 0:01:58]} 25. Qxc7 {[%clk 0:01:37]}  Qe8 {[%clk 0:01:59]} 26. Rd1 {[%clk 0:01:32]}  Nf8 {[%clk 0:01:58]} 27. b3 {[%clk 0:01:23]}  Ne6 {[%clk 0:01:58]} 28. Qd7 {[%clk 0:01:21]}  Qxd7 {[%clk 0:01:52]} 29. Rxd7 {[%clk 0:01:21]}  a5 {[%clk 0:01:52]} 30. g3 {[%clk 0:01:14]}  f4 {[%clk 0:01:45]} 31. gxf4 {[%clk 0:01:10]}  Nxf4 {[%clk 0:01:46]} 32. Ng5 {[%clk 0:01:09]}  Rf8 {[%clk 0:01:41]} 33. Ra7 {[%clk 0:01:02]}  h6 {[%clk 0:01:37]} 34. Ne4 {[%clk 0:01:02]}  Rc8 {[%clk 0:01:28]} 35. Nd6 {[%clk 0:00:52]}  Rc1+ {[%clk 0:01:27]} 36. Kh2 {[%clk 0:00:52]}  Rc2 {[%clk 0:01:27]} 37. Nxf7 {[%clk 0:00:26]}  h5 {[%clk 0:00:58]} 38. Nh6+ {[%clk 0:00:21]}  Kh8 {[%clk 0:00:58]} 39. Nf7+ {[%clk 0:00:21]}  Kg7 {[%clk 0:00:57]} 40. Kg3 {[%clk 0:00:20]}  Nd5 {[%clk 0:00:43]} 41. Ng5+ {[%clk 0:00:20]}  Kf8 {[%clk 0:00:33]} 42. Rxa5 {[%clk 0:00:18]}  Ne7 {[%clk 0:00:24]} 43. Ra8+ {[%clk 0:00:15]}  Kg7 {[%clk 0:00:23]} 44. Ra7 {[%clk 0:00:16]}  Kf8 {[%clk 0:00:20]} 45. Ne4 {[%clk 0:00:15]}  Nf5+ {[%clk 0:00:20]} 46. Kf4 {[%clk 0:00:13]}  Rc6 {[%clk 0:00:07]} 47. Kg5 {[%clk 0:00:09]}  h4 {[%clk 0:00:07]} 48. Nf6 {[%clk 0:00:09]}  h3 {[%clk 0:00:04]} 49. Ra8+ {[%clk 0:00:08]}  Kf7 {[%clk 0:00:04]} 50. Rh8 {[%clk 0:00:09]}  Rc3 {[%clk 0:00:03]} 51. Rh7+ {[%clk 0:00:09]}  Ke6 {[%clk 0:00:04]} 52. Ng4 {[%clk 0:00:05]}  Ne7 {[%clk 0:00:02]} 53. Ne3 {[%clk 0:00:04]}  Rd3 {[%clk 0:00:02]} 54. Rxh3 {[%clk 0:00:04]}  Kxe5 {[%clk 0:00:02]} 55. Rh7 {[%clk 0:00:04]}  Ke6 {[%clk 0:00:02]} 56. Kf4 {[%clk 0:00:03]}  Rd2 {[%clk 0:00:02]} 57. a4 {[%clk 0:00:03]}  Rb2 {[%clk 0:00:02]} 58. Rh8 {[%clk 0:00:02]}  Rxb3 {[%clk 0:00:02]} 59. Ra8 {[%clk 0:00:03]}  Rb4+ {[%clk 0:00:02]} 60. Kg5 {[%clk 0:00:03]}  Rb2 {[%clk 0:00:02]} 61. f4 {[%clk 0:00:03]}  Rf2 {[%clk 0:00:02]} 62. Ng4 {[%clk 0:00:03]}  Rg2 {[%clk 0:00:01]} 63. Ra6+ {[%clk 0:00:04]}  Kf7 {[%clk 0:00:02]} 64. Ra7 {[%clk 0:00:04]}  Rg1 {[%clk 0:00:02]} 65. a5 {[%clk 0:00:04]}  Ke6 {[%clk 0:00:02]} 66. Ra6+ {[%clk 0:00:04]}  Kd5 {[%clk 0:00:02]} 67. Kf6 {[%clk 0:00:02]}  Nc6 {[%clk 0:00:02]} 68. Ne5 {[%clk 0:00:02]}  Nxe5 {[%clk 0:00:01]} 69. fxe5 {[%clk 0:00:03]}  Rf1+ {[%clk 0:00:02]} 70. Kxg6 {[%clk 0:00:03]}  Kxe5 {[%clk 0:00:02]} 71. Ra8 {[%clk 0:00:03]}  Ra1 {[%clk 0:00:02]} 72. a6 {[%clk 0:00:03]}  Rg1+ {[%clk 0:00:01]} 73. Kf7 {[%clk 0:00:04]}  Ra1 {[%clk 0:00:01]} 74. a7 {[%clk 0:00:03]}  Kf5 {[%clk 0:00:02]} 75. Kg7 {[%clk 0:00:03]}  Kg5 {[%clk 0:00:02]} 76. Kf7 {[%clk 0:00:03]}  Kf5 {[%clk 0:00:03]} 77. Ke7 {[%clk 0:00:04]}  Ke5 {[%clk 0:00:03]} 78. Kd7 {[%clk 0:00:04]}  Kd5 {[%clk 0:00:04]} 79. Kc7 {[%clk 0:00:05]}  Kc5 {[%clk 0:00:04]} 80. Kb7 {[%clk 0:00:06]}  Rb1+ {[%clk 0:00:05]} 81. Kc7 {[%clk 0:00:06]}  Ra1 {[%clk 0:00:05]} 82. Kb8 {[%clk 0:00:04]}  Kc6 {[%clk 0:00:03]} 83. Kc8 {[%clk 0:00:03]}  Rh1 {[%clk 0:00:03]} 84. Kd8 {[%clk 0:00:00]}  Rh8+ {[%clk 0:00:04]} 0-1

[Event "January 2 Late 2024"]
[Site "https://www.chess.com"]
[Date "2024.01.02"]
[Round "8"]
[White "Gasparyan, David"]
[Black "Carlsson, Ludvig"]
[Result "1/2-1/2"]
[Board "64"]
[TimeControl "180+1"]
[WhiteFideId "13311980"]
[BlackFideId "1727010"]
[WhiteElo "2532"]
[BlackElo "2702"]
[WhiteTeam "USA"]
[BlackTeam "SWE"]
[WhiteClock "0:00:47"]
[BlackClock "0:00:28"]

1. Nf3 {[%clk 0:03:00]}  d5 {[%clk 0:02:57]} 2. g3 {[%clk 0:03:01]}  e6 {[%clk 0:02:55]} 3. Bg2 {[%clk 0:03:01]}  Be7 {[%clk 0:02:56]} 4. O-O {[%clk 0:03:01]}  Nf6 {[%clk 0:02:56]} 5. c4 {[%clk 0:03:01]}  O-O {[%clk 0:02:57]} 6. cxd5 {[%clk 0:03:01]}  exd5 {[%clk 0:02:57]} 7. d4 {[%clk 0:03:01]}  c6 {[%clk 0:02:56]} 8. Nc3 {[%clk 0:03:02]}  Bf5 {[%clk 0:02:56]} 9. Bf4 {[%clk 0:03:02]}  Nbd7 {[%clk 0:02:54]} 10. Ne5 {[%clk 0:03:00]}  h6 {[%clk 0:02:49]} 11. Rc1 {[%clk 0:02:59]}  Ne8 {[%clk 0:02:30]} 12. Nd3 {[%clk 0:02:49]}  Bd6 {[%clk 0:02:29]} 13. a3 {[%clk 0:02:43]}  Bxf4 {[%clk 0:02:27]} 14. Nxf4 {[%clk 0:02:43]}  Nd6 {[%clk 0:02:27]} 15. b4 {[%clk 0:02:32]}  a6 {[%clk 0:02:23]} 16. Nd3 {[%clk 0:02:29]}  Re8 {[%clk 0:02:15]} 17. Nc5 {[%clk 0:02:22]}  Nb6 {[%clk 0:02:09]} 18. Re1 {[%clk 0:02:03]}  Nbc4 {[%clk 0:02:03]} 19. Qb3 {[%clk 0:02:03]}  b5 {[%clk 0:02:00]} 20. Rcd1 {[%clk 0:01:59]}  Ra7 {[%clk 0:01:58]} 21. e4 {[%clk 0:01:58]}  dxe4 {[%clk 0:01:57]} 22. N3xe4 {[%clk 0:01:58]}  Rae7 {[%clk 0:01:56]} 23. f3 {[%clk 0:01:48]}  Be6 {[%clk 0:01:50]} 24. Qc3 {[%clk 0:01:46]}  Bd5 {[%clk 0:01:49]} 25. Nxd6 {[%clk 0:01:30]}  Nxd6 {[%clk 0:01:50]} 26. Rxe7 {[%clk 0:01:28]}  Qxe7 {[%clk 0:01:51]} 27. Nxa6 {[%clk 0:01:24]}  Qe3+ {[%clk 0:01:21]} 28. Qxe3 {[%clk 0:01:21]}  Rxe3 {[%clk 0:01:22]} 29. Nc7 {[%clk 0:01:16]}  Rxa3 {[%clk 0:01:21]} 30. Nxd5 {[%clk 0:01:16]}  cxd5 {[%clk 0:01:22]} 31. f4 {[%clk 0:01:17]}  Ne4 {[%clk 0:01:19]} 32. Bxe4 {[%clk 0:01:16]}  dxe4 {[%clk 0:01:20]} 33. d5 {[%clk 0:01:17]}  Kf8 {[%clk 0:01:20]} 34. d6 {[%clk 0:01:16]}  Ke8 {[%clk 0:01:11]} 35. Rd5 {[%clk 0:01:17]}  Kd7 {[%clk 0:01:05]} 36. Rxb5 {[%clk 0:01:17]}  Kxd6 {[%clk 0:00:59]} 37. Re5 {[%clk 0:01:16]}  e3 {[%clk 0:00:55]} 38. Kf1 {[%clk 0:01:16]}  f6 {[%clk 0:00:53]} 39. Re8 {[%clk 0:01:16]}  Kd5 {[%clk 0:00:52]} 40. Ke2 {[%clk 0:01:14]}  Rb3 {[%clk 0:00:49]} 41. Rxe3 {[%clk 0:01:13]}  Rxb4 {[%clk 0:00:50]} 42. Kf3 {[%clk 0:01:13]}  h5 {[%clk 0:00:47]} 43. Rd3+ {[%clk 0:01:13]}  Ke6 {[%clk 0:00:47]} 44. h3 {[%clk 0:01:13]}  Rb1 {[%clk 0:00:46]} 45. Re3+ {[%clk 0:01:11]}  Kf7 {[%clk 0:00:45]} 46. g4 {[%clk 0:01:11]}  hxg4+ {[%clk 0:00:45]} 47. hxg4 {[%clk 0:01:12]}  Rb4 {[%clk 0:00:45]} 48. Re4 {[%clk 0:01:11]}  Rb3+ {[%clk 0:00:44]} 49. Re3 {[%clk 0:01:12]}  Rb1 {[%clk 0:00:45]} 50. Ra3 {[%clk 0:01:10]}  Rg1 {[%clk 0:00:43]} 51. Ra6 {[%clk 0:01:06]}  Rh1 {[%clk 0:00:41]} 52. g5 {[%clk 0:01:04]}  fxg5 {[%clk 0:00:38]} 53. fxg5 {[%clk 0:01:04]}  Rg1 {[%clk 0:00:38]} 54. Kf4 {[%clk 0:01:04]}  Rf1+ {[%clk 0:00:35]} 55. Ke5 {[%clk 0:01:02]}  Rf2 {[%clk 0:00:23]} 56. g6+ {[%clk 0:01:00]}  Kg8 {[%clk 0:00:23]} 57. Ra8+ {[%clk 0:00:46]}  Rf8 {[%clk 0:00:24]} 58. Rxf8+ {[%clk 0:00:46]}  Kxf8 {[%clk 0:00:25]} 59. Kd6 {[%clk 0:00:46]}  Ke8 {[%clk 0:00:25]} 60. Ke6 {[%clk 0:00:46]}  Kf8 {[%clk 0:00:25]} 61. Kd7 {[%clk 0:00:46]}  Kg8 {[%clk 0:00:26]} 62. Ke7 {[%clk 0:00:47]}  Kh8 {[%clk 0:00:27]} 63. Ke8 {[%clk 0:00:46]}  Kg8 {[%clk 0:00:28]} 64. Ke7 {[%clk 0:00:46]}  Kh8 {[%clk 0:00:28]} 65. Kf7 {[%clk 0:00:47]} 1/2-1/2

[Event "January 2 Late 2024"]
[Site "https://www.chess.com"]
[Date "2024.01.02"]
[Round "8"]
[White "Mirzoev, Azer"]
[Black "Weisz, Bryan"]
[Result "0-1"]
[Board "69"]
[TimeControl "180+1"]
[WhiteFideId "13400304"]
[BlackFideId "30934133"]
[WhiteElo "2653"]
[BlackElo "2524"]
[WhiteTeam "AZE"]
[BlackTeam "USA"]
[WhiteClock "0:00:00"]
[BlackClock "0:00:04"]

1. c4 {[%clk 0:02:59]}  d5 {[%clk 0:02:59]} 2. cxd5 {[%clk 0:02:58]}  Nf6 {[%clk 0:02:59]} 3. e4 {[%clk 0:02:58]}  c6 {[%clk 0:02:59]} 4. dxc6 {[%clk 0:02:58]}  Nxc6 {[%clk 0:02:59]} 5. Nc3 {[%clk 0:02:56]}  e5 {[%clk 0:02:59]} 6. Nf3 {[%clk 0:02:55]}  Bc5 {[%clk 0:02:57]} 7. Bb5 {[%clk 0:02:52]}  O-O {[%clk 0:02:46]} 8. Bxc6 {[%clk 0:02:52]}  bxc6 {[%clk 0:02:46]} 9. O-O {[%clk 0:02:52]}  Ba6 {[%clk 0:02:41]} 10. Nxe5 {[%clk 0:02:35]}  Bxf1 {[%clk 0:02:38]} 11. Qxf1 {[%clk 0:02:36]}  Qe8 {[%clk 0:02:19]} 12. Nd3 {[%clk 0:02:18]}  Bd4 {[%clk 0:02:14]} 13. Qe2 {[%clk 0:02:10]}  c5 {[%clk 0:01:56]} 14. e5 {[%clk 0:02:05]}  Nd7 {[%clk 0:01:50]} 15. Nb5 {[%clk 0:01:50]}  Bxe5 {[%clk 0:01:37]} 16. Nxe5 {[%clk 0:01:47]}  Qxe5 {[%clk 0:01:36]} 17. Qxe5 {[%clk 0:01:43]}  Nxe5 {[%clk 0:01:37]} 18. d4 {[%clk 0:01:34]}  cxd4 {[%clk 0:01:30]} 19. Nxd4 {[%clk 0:01:33]}  Nd3 {[%clk 0:01:25]} 20. b3 {[%clk 0:01:26]}  Nxc1 {[%clk 0:01:14]} 21. Rxc1 {[%clk 0:01:26]}  Rac8 {[%clk 0:01:14]} 22. Nc6 {[%clk 0:01:18]}  Rc7 {[%clk 0:01:12]} 23. Rc4 {[%clk 0:01:14]}  f6 {[%clk 0:01:02]} 24. Kf1 {[%clk 0:01:12]}  g6 {[%clk 0:00:57]} 25. Ke2 {[%clk 0:01:07]}  Kg7 {[%clk 0:00:56]} 26. Kd3 {[%clk 0:01:00]}  Rfc8 {[%clk 0:00:54]} 27. Nd4 {[%clk 0:00:55]}  Rxc4 {[%clk 0:00:51]} 28. bxc4 {[%clk 0:00:55]}  Kf7 {[%clk 0:00:51]} 29. Nb5 {[%clk 0:00:52]}  Ke6 {[%clk 0:00:45]} 30. Kd4 {[%clk 0:00:46]}  a6 {[%clk 0:00:39]} 31. Nc3 {[%clk 0:00:45]}  Rb8 {[%clk 0:00:34]} 32. Na4 {[%clk 0:00:40]}  Kd6 {[%clk 0:00:29]} 33. f4 {[%clk 0:00:35]}  Rb4 {[%clk 0:00:25]} 34. Nc5 {[%clk 0:00:29]}  Rb2 {[%clk 0:00:22]} 35. Ne4+ {[%clk 0:00:27]}  Ke6 {[%clk 0:00:16]} 36. Nc5+ {[%clk 0:00:25]}  Kf5 {[%clk 0:00:16]} 37. a4 {[%clk 0:00:21]}  a5 {[%clk 0:00:13]} 38. g3 {[%clk 0:00:12]}  Rxh2 {[%clk 0:00:12]} 39. Ne4 {[%clk 0:00:11]}  Ra2 {[%clk 0:00:06]} 40. Nc3 {[%clk 0:00:09]}  Ra3 {[%clk 0:00:06]} 41. c5 {[%clk 0:00:09]}  Ke6 {[%clk 0:00:05]} 42. Kc4 {[%clk 0:00:08]}  h5 {[%clk 0:00:05]} 43. c6 {[%clk 0:00:08]}  Ra1 {[%clk 0:00:02]} 44. Kc5 {[%clk 0:00:07]}  Rc1 {[%clk 0:00:01]} 45. Kd4 {[%clk 0:00:07]}  Kd6 {[%clk 0:00:01]} 46. Ne4+ {[%clk 0:00:06]}  Kxc6 {[%clk 0:00:02]} 47. Nxf6 {[%clk 0:00:07]}  Rb1 {[%clk 0:00:03]} 48. Ne4 {[%clk 0:00:04]}  Rb4+ {[%clk 0:00:04]} 49. Ke5 {[%clk 0:00:04]}  Rxa4 {[%clk 0:00:04]} 50. Ng5 {[%clk 0:00:02]}  Rb4 {[%clk 0:00:04]} 51. Ne6 {[%clk 0:00:02]}  a4 {[%clk 0:00:04]} 52. Kf6 {[%clk 0:00:02]}  a3 {[%clk 0:00:04]} 53. Kxg6 {[%clk 0:00:00]}  a2 {[%clk 0:00:04]} 0-1